bitfinex-derivatives/quotes_SOLF0:USTF0_20260210
["timestamp","ask_amount","ask_price","bid_price","bid_amount"]
[1770729889353,10.6984,84.202,84.157,10.704]
[1770729889354,5.40433457,84.199,84.157,10.704]
[1770729892060,5.40433457,84.199,84.163,10.7032]
[1770729893457,5.40433457,84.199,84.17,10.7023]
[1770729893760,200.94,84.203,84.17,10.7023]
[1770729898556,200.94,84.203,84.175,10.7017]
[1770729899058,10.6965,84.217,84.175,10.7017]
[1770729899059,211.86,84.214,84.175,10.7017]
[1770729899457,5.4923699,84.213,84.175,10.7017]
[1770729900052,5.4923699,84.213,84.14,453.81532563]
[1770729900053,5.4923699,84.213,84.18,3.61306919]
[1770729900253,5.4923699,84.225,84.18,3.61306919]
[1770729900458,5.4923699,84.239,84.2,3.61306919]
[1770729900653,212.22,84.238,84.2,3.61306919]
[1770729900854,212.22,84.238,84.157,129.9]
[1770729900855,5.45138763,84.237,84.205,10.698]
[1770729901357,5.45138763,84.237,84.198,10.6988]
[1770729901563,5.45138763,84.219,84.16,3.61306919]
[1770729901861,5.45138763,84.209,84.16,3.61306919]
[1770729902060,5.45138763,84.207,84.15,3.61306919]
[1770729902262,5.45138763,84.189,84.135,14.79874976]
[1770729902460,5.45138763,84.189,84.126,21.4159]
[1770729902461,5.45138763,84.189,84.14,457.42839482]
[1770729902662,5.45138763,84.189,84.149,10.7051]
[1770729902863,5.42626646,84.179,84.13,3.61306919]
[1770729903060,5.42626646,84.179,84.14,3.61306919]
[1770729903868,5.42626646,84.179,84.155,10.7043]
[1770729904160,6.646e-05,84.179,84.155,10.7043]
[1770729905666,6.646e-05,84.179,84.145,2.74204637]
[1770729906361,3.73681498,84.189,84.148,10.7052]
[1770729907262,3.73681498,84.189,84.148,13.46649926]
[1770729907465,3.73681498,84.189,84.149,2.76129926]
[1770729907666,3.61306919,84.18,84.149,2.76129926]
[1770729907855,35.7,84.237,84.161,2.76129926]
[1770729907856,3.73681498,84.199,84.161,2.76129926]
[1770729909763,3.73681498,84.179,84.132,2.73151896]
[1770729910466,3.73681498,84.179,84.134,2.73151896]
[1770729910657,3.73681498,84.169,84.134,2.73151896]
[1770729910859,3.73681498,84.159,84.123,2.73822535]
[1770729911156,3.61306919,84.16,84.123,2.73822535]
[1770729911365,7.34988417,84.17,84.123,2.73822535]
[1770729911667,3.61306919,84.16,84.123,2.73822535]
[1770729912259,3.73681498,84.159,84.123,2.73822535]
[1770729913069,3.73681498,84.159,84.124,2.81327464]
[1770729913272,7.34988417,84.17,84.124,2.81327464]
[1770729913567,3.61306919,84.18,84.136,2.81327464]
[1770729913966,3.73681498,84.179,84.136,2.81327464]
[1770729917470,3.73681498,84.179,84.127,14.79874976]
[1770729917471,3.73681498,84.169,84.127,14.79874976]
[1770729917662,3.61306919,84.16,84.123,10.7084]
[1770729917863,3.73681498,84.159,84.121,2.70778273]
[1770729918865,3.73681498,84.159,84.122,10.7085]
[1770729919072,3.61306919,84.17,84.123,2.64037744]
[1770729919273,7.34988417,84.17,84.123,2.64037744]
[1770729919471,3.73681498,84.169,84.123,2.64037744]
[1770729920771,3.73681498,84.169,84.127,13.38499656]
[1770729920974,3.73681498,84.169,84.128,2.67709656]
[1770729921171,10.7013,84.179,84.128,2.67709656]
[1770729921372,14.57196169,84.179,84.128,2.67709656]
[1770729921570,3.87066169,84.178,84.128,2.67709656]
[1770729921875,3.87066169,84.178,84.131,2.67709656]
[1770729922475,3.87066169,84.178,84.133,10.7071]
[1770729922779,3.87066169,84.178,84.134,2.67709656]
[1770729923473,3.87066169,84.178,84.137,2.63731253]
[1770729924673,3.87066169,84.178,84.138,10.7065]
[1770729924872,3.87066169,84.178,84.139,2.55541008]
[1770729925679,3.87066169,84.178,84.13,3.61306919]
[1770729925680,3.87066169,84.178,84.142,2.55541008]
[1770729927375,3.87066169,84.178,84.145,10.7056]
[1770729928079,3.87066169,84.178,84.152,10.7047]
[1770729929381,3.87066169,84.189,84.152,10.7047]
[1770729929584,3.87066169,84.189,84.142,13.26141008]
[1770729929784,3.87066169,84.189,84.143,2.76096611]
[1770729931681,3.87066169,84.186,84.143,2.76096611]
[1770729932181,3.87066169,84.184,84.143,2.76096611]
[1770729932484,3.87066169,84.179,84.129,2.82738123]
[1770729932681,3.61306919,84.17,84.129,2.82738123]
[1770729932980,3.61306919,84.17,84.133,2.6722742]
[1770729933281,3.87066169,84.188,84.141,2.6722742]
[1770729933486,3.87066169,84.178,84.141,2.6722742]
[1770729937285,3.87066169,84.178,84.142,10.7059]
[1770729937486,3.87066169,84.178,84.142,13.42796208]
[1770729937686,3.87066169,84.178,84.142,2.72206208]
[1770729938386,3.87066169,84.178,84.141,10.7061]
[1770729939391,3.87066169,84.178,84.133,13.3733579]
[1770729941691,3.87066169,84.178,84.137,2.67215581]
[1770729942789,3.87066169,84.178,84.139,10.7064]
[1770729943588,10.7013,84.18,84.14,2.70475144]
[1770729943791,3.87066169,84.179,84.147,10.7053]
[1770729943994,3.87066169,84.159,84.125,14.79874976]
[1770729944193,3.87066169,84.159,84.119,2.70475144]
[1770729945695,3.87066169,84.159,84.122,10.7085]
[1770729946889,3.87066169,84.159,84.126,10.708]
[1770729947890,7.48373088,84.17,84.129,2.69739413]
[1770729948091,3.87066169,84.169,84.129,2.69739413]
[1770729951902,3.87066169,84.169,84.131,13.55062457]
[1770729952107,3.87066169,84.169,84.132,2.84332457]
[1770729952300,7.6373669,84.18,84.132,2.84332457]
[1770729952499,4.02429771,84.179,84.132,2.84332457]
[1770729953297,4.02429771,84.179,84.143,10.7058]
[1770729954702,4.02429771,84.179,84.112,21.75727828]
[1770729954703,4.02429771,84.192,84.151,2.59454354]
[1770729956900,210.16,84.223,84.14,2.58766434]
[1770729956901,4.02429771,84.189,84.14,2.58766434]
[1770729957102,4.02429771,84.188,84.141,2.58766434]
[1770729957713,4.02429771,84.186,84.153,10.7035]
[1770729959512,4.02429771,84.186,84.16,10.7026]
[1770729959712,4.02429771,84.186,84.151,2.66730231]
[1770729960805,4.02429771,84.169,84.132,14.79874976]
[1770729961013,4.02429771,84.169,84.126,2.53768069]
[1770729961213,4.02429771,84.169,84.131,2.53768069]
[1770729967220,10.702,84.165,84.131,2.53768069]
[1770729967720,4.02429771,84.169,84.131,2.53768069]
[1770729970825,4.02429771,84.169,84.133,2.66907061]
[1770729972324,4.02429771,84.169,84.136,2.66907061]
[1770729975223,4.02429771,84.169,84.139,2.54687354]
[1770729976121,10.6999,84.182,84.139,2.54687354]
[1770729976122,10.7003,84.179,84.139,2.54687354]
[1770729976321,4.02429771,84.178,84.139,2.54687354]
[1770729977427,4.02429771,84.174,84.139,2.54687354]
[1770729978124,4.02429771,84.169,84.128,2.55773402]
[1770729978525,4.02429771,84.189,84.136,2.55773402]
[1770729979819,4.02429771,84.183,84.136,2.55773402]
[1770729980221,4.02429771,84.183,84.141,2.58930131]
[1770729982633,14.52513004,84.182,84.141,2.58930131]
[1770729982932,3.82523004,84.181,84.141,2.58930131]
[1770729983236,3.82523004,84.178,84.141,2.58930131]
[1770729984840,3.82523004,84.178,84.129,2.77309237]
[1770729985436,3.82523004,84.174,84.131,2.77309237]
[1770729985638,3.82523004,84.174,84.133,2.77309237]
[1770729986738,3.82523004,84.174,84.135,2.82083937]
[1770729987738,3.82523004,84.186,84.141,2.82083937]
[1770729987939,3.82523004,84.197,84.143,2.82083937]
[1770729988242,3.82523004,84.197,84.144,2.82083937]
[1770729988637,3.82523004,84.197,84.147,2.82083937]
[1770729989838,3.82523004,84.197,84.153,2.89647045]
[1770729990344,3.82523004,84.197,84.157,13.59947045]
[1770729992344,3.82523004,84.197,84.158,2.96084086]
[1770729993644,3.82523004,84.197,84.161,10.7025]
[1770729995047,3.82523004,84.197,84.161,13.63358932]
[1770729995249,3.82523004,84.197,84.164,2.93108932]
[1770729996643,3.82523004,84.199,84.155,14.79874976]
[1770729996849,3.82523004,84.189,84.155,14.79874976]
[1770729997050,3.82523004,84.189,84.151,2.86183737]
[1770729997752,3.82523004,84.189,84.146,14.79874976]
[1770729998253,3.82523004,84.189,84.143,10.7047]
[1770729998254,3.82523004,84.189,84.144,2.86183737]
[1770730000352,3.82523004,84.189,84.146,14.79874976]
[1770730000553,3.82523004,84.189,84.145,17.61828331]
[1770730000949,3.82523004,84.189,84.145,2.81953355]
[1770730001752,3.82523004,84.189,84.141,14.79874976]
[1770730001753,3.82523004,84.187,84.141,14.79874976]
[1770730002150,3.82523004,84.187,84.139,17.61828331]
[1770730002652,3.82523004,84.187,84.14,2.81953355]
[1770730002847,3.82523004,84.179,84.14,2.81953355]
[1770730006047,3.82523004,84.179,84.141,10.705]
[1770730006957,3.82523004,84.179,84.134,14.79874976]
[1770730007154,3.82523004,84.169,84.131,2.79676552]
[1770730008248,3.82523004,84.169,84.117,21.75727828]
[1770730008249,3.82523004,84.169,84.124,14.79874976]
[1770730008553,3.82523004,84.169,84.125,2.79676552]
[1770730009856,3.82523004,84.169,84.126,2.85078693]
[1770730012655,3.82523004,84.169,84.125,25.50574976]
[1770730012656,3.82523004,84.169,84.131,2.54208379]
[1770730014156,3.82523004,84.169,84.136,2.59570134]
[1770730014560,3.71694595,84.182,84.141,2.59570134]
[1770730014753,7.3340741,84.19,84.141,2.59570134]
[1770730014949,3.71694595,84.189,84.141,2.59570134]
[1770730015661,3.71694595,84.187,84.141,2.59570134]
[1770730016561,3.71694595,84.184,84.141,2.59570134]
[1770730017357,3.71694595,84.179,84.137,14.79874976]
[1770730017562,3.71694595,84.169,84.13,10.7064]
[1770730019659,3.71694595,84.169,84.128,2.43273538]
[1770730020562,3.71694595,84.169,84.13,3.61530781]
[1770730020762,3.71694595,84.169,84.131,2.62811338]
[1770730022164,3.71694595,84.167,84.131,2.62811338]
[1770730023555,3.71694595,84.167,84.118,14.79874976]
[1770730023758,3.71694595,84.167,84.113,14.79874976]
[1770730023965,3.71694595,84.167,84.114,2.47982661]
[1770730024662,3.71694595,84.159,84.114,2.47982661]
[1770730024859,10.7037,84.152,84.114,2.47982661]
[1770730025568,3.71694595,84.159,84.11,14.79874976]
[1770730025865,3.71694595,84.149,84.102,2.63643517]
[1770730026760,3.71694595,84.146,84.102,2.63643517]
[1770730031274,3.71694595,84.146,84.111,2.47994041]
[1770730034772,3.71694595,84.146,84.113,10.7086]
[1770730035375,3.71694595,84.146,84.111,2.47994041]
[1770730035567,3.71694595,84.139,84.091,2.567001]
[1770730035771,3.71694595,84.139,84.101,2.567001]
[1770730036068,3.71694595,84.159,84.11,6.18379293]
[1770730036268,3.71694595,84.159,84.113,2.567001]
[1770730037764,3.71694595,84.159,84.115,10.7083]
[1770730038473,3.71694595,84.157,84.115,10.7083]
[1770730039668,3.71694595,84.155,84.113,2.567001]
[1770730041672,3.9323949,84.152,84.113,2.567001]
[1770730041978,3.9323949,84.169,84.113,2.567001]
[1770730042179,3.9323949,84.168,84.121,2.61649329]
[1770730043680,14.6344949,84.165,84.121,2.61649329]
[1770730044580,10.703,84.158,84.121,2.61649329]
[1770730045481,3.9323949,84.165,84.121,2.61649329]
[1770730046682,10.7032,84.156,84.121,2.61649329]
[1770730050382,3.9323949,84.165,84.121,2.61649329]
[1770730051881,3.9323949,84.165,84.123,2.58726862]
[1770730053687,3.9323949,84.165,84.13,3.61679193]
[1770730054380,3.9323949,84.165,84.131,2.58212657]
[1770730054883,3.9323949,84.168,84.133,2.56069671]
[1770730058492,3.9323949,84.168,84.134,13.30618192]
[1770730059790,3.9323949,84.168,84.135,2.56565288]
[1770730061695,3.9323949,84.168,84.13,3.61679193]
[1770730062508,3.9323949,84.167,84.127,13.13952581]
[1770730063102,3.9323949,84.167,84.132,10.7061]
[1770730067906,3.9323949,84.167,84.138,10.7054]
[1770730074318,3.9323949,84.167,84.144,10.7046]
[1770730074504,11.89,84.268,84.12,14.79874976]
[1770730074505,3.91188942,84.199,84.151,2.99972899]
[1770730074898,3.91188942,84.189,84.151,2.99972899]
[1770730075099,3.91188942,84.189,84.147,10.7042]
[1770730076716,3.91188942,84.186,84.147,10.7042]
[1770730078815,3.91188942,84.186,84.15,10.7039]
[1770730079115,3.91188942,84.186,84.15,13.72471661]
[1770730079716,3.91188942,84.186,84.15,3.02081661]
[1770730080815,3.91188942,84.186,84.15,6.63760854]
[1770730081515,3.91188942,84.184,84.15,3.02081661]
[1770730083621,10.6999,84.182,84.15,3.02081661]
[1770730083813,14.61178942,84.182,84.15,3.02081661]
[1770730084817,10.6999,84.182,84.14,3.61513819]
[1770730085213,10.6999,84.182,84.141,10.7049]
[1770730085413,35.7,84.22,84.14,3.61513819]
[1770730085414,10.7007,84.176,84.14,3.61513819]
[1770730087528,10.6998,84.183,84.15,3.61513819]
[1770730088520,10.6998,84.183,84.14,3.61513819]
[1770730090229,10.6989,84.19,84.14,14.32023819]
[1770730091130,14.31403819,84.19,84.14,14.32023819]
[1770730092631,14.31403819,84.19,84.146,10.7044]
[1770730093530,10.6989,84.19,84.146,10.7044]
[1770730095735,10.6998,84.183,84.146,10.7044]
[1770730097333,3.61513819,84.22,84.17,3.61513819]
[1770730097533,322.65224754,84.227,84.17,3.61513819]
[1770730098338,10.6955,84.217,84.18,3.61513819]
[1770730098533,10.6955,84.217,84.172,10.701]
[1770730098732,10.6955,84.217,84.18,3.61513819]
[1770730099238,10.6962,84.211,84.18,3.61513819]
[1770730099434,35.7,84.253,84.18,3.61513819]
[1770730099737,3.61513819,84.24,84.19,3.61513819]
[1770730100144,10.6936,84.232,84.19,14.31393819]
[1770730101439,37.76661876,84.271,84.19,14.31393819]
[1770730101440,10.6926,84.24,84.19,14.31393819]
[1770730102540,2.06661876,84.271,84.2,3.61513819]
[1770730102541,10.6912,84.251,84.2,3.61513819]
[1770730103838,3.61513819,84.25,84.202,10.6973]
[1770730104137,10.6912,84.251,84.21,3.61513819]
[1770730104329,21.3709,84.296,84.163,21.75727828]
[1770730104330,3.61513819,84.28,84.22,3.61513819]
[1770730104527,3.61513819,84.27,84.22,3.61513819]
[1770730104738,2.06603597,84.297,84.22,3.61513819]
[1770730104941,3.61513819,84.27,84.22,3.61513819]
[1770730105141,10.688,84.276,84.229,10.6938]
[1770730105340,3.61513819,84.28,84.23,3.61513819]
[1770730105742,10.687,84.283,84.23,3.61513819]
[1770730106447,3.61513819,84.28,84.23,3.61513819]
[1770730106639,3.61513819,84.27,84.22,3.61513819]
[1770730107744,10.6889,84.269,84.22,3.61513819]
[1770730109532,10.6878,84.277,84.221,10.6949]
[1770730110544,10.6878,84.277,84.23,3.61513819]
[1770730111046,10.6868,84.285,84.231,10.6936]
[1770730111235,10.6868,84.285,84.23,3.61513819]
[1770730111236,3.61513819,84.28,84.22,3.61513819]
[1770730111441,3.61513819,84.28,84.23,3.61513819]
[1770730111640,3.61513819,84.29,84.24,3.61513819]
[1770730113645,3.61513819,84.3,84.24,3.61513819]
[1770730114045,3.61513819,84.29,84.24,3.61513819]
[1770730115437,3.61513819,84.29,84.241,10.6923]
[1770730115644,3.61513819,84.29,84.24,3.61513819]
[1770730118050,2.06524513,84.327,84.25,3.61513819]
[1770730118249,3.61513819,84.29,84.24,3.61513819]
[1770730118450,3.61513819,84.28,84.23,3.61513819]
[1770730118643,3.61513819,84.27,84.22,3.61513819]
[1770730118843,3.61513819,84.27,84.21,3.61513819]
[1770730119050,3.61513819,84.27,84.22,3.61513819]
[1770730119252,3.61513819,84.26,84.21,3.61513819]
[1770730119848,3.61513819,84.26,84.215,10.6956]
[1770730120752,3.61513819,84.27,84.215,10.6956]
[1770730121551,3.61513819,84.26,84.206,10.6967]
[1770730121757,3.61513819,84.26,84.2,3.61513819]
[1770730122056,3.61513819,84.26,84.21,3.61513819]
[1770730122353,3.61513819,84.26,84.219,10.695]
[1770730122562,3.61513819,84.27,84.219,10.695]
[1770730122744,3.61513819,84.27,84.197,462.61176447]
[1770730122745,326.66,84.316,84.197,462.61176447]
[1770730122947,3.61513819,84.24,84.194,10.6983]
[1770730123153,3.61513819,84.23,84.194,10.6983]
[1770730123665,3.61513819,84.24,84.194,10.6983]
[1770730123855,3.61513819,84.24,84.201,10.6974]
[1770730124257,3.61513819,84.24,84.18,3.61513819]
[1770730124561,3.61513819,84.23,84.18,3.61513819]
[1770730124761,3.61513819,84.23,84.2,10.6975]
[1770730125160,3.61513819,84.24,84.2,10.6975]
[1770730125759,3.61513819,84.24,84.19,3.61513819]
[1770730125970,3.61513819,84.23,84.192,10.6985]
[1770730126170,3.61513819,84.24,84.192,10.6985]
[1770730126957,21.3728,84.289,84.16,21.4051]
[1770730126958,3.61513819,84.25,84.19,3.61513819]
[1770730127166,3.61513819,84.25,84.2,3.61513819]
[1770730127369,3.61513819,84.26,84.2,3.61513819]
[1770730127566,10.6902,84.258,84.21,3.61513819]
[1770730127872,3.61513819,84.27,84.21,3.61513819]
[1770730128170,3.61513819,84.27,84.22,3.61513819]
[1770730128771,3.61513819,84.28,84.22,3.61513819]
[1770730128977,3.61513819,84.28,84.23,3.61513819]
[1770730129176,3.61513819,84.28,84.22,3.61513819]
[1770730129564,21.3672,84.311,84.22,3.61513819]
[1770730129769,10.6865,84.287,84.23,3.61513819]
[1770730130671,10.6865,84.287,84.241,10.6922]
[1770730131272,14.30253819,84.28,84.23,10.6937]
[1770730131471,3.61513819,84.28,84.23,10.6937]
[1770730131973,3.6076367,84.28,84.23,14.3013367]
[1770730132582,3.6076367,84.27,84.23,10.6937]
[1770730133574,3.6076367,84.27,84.22,3.6076367]
[1770730133978,3.6076367,84.27,84.213,10.6959]
[1770730134174,3.6076367,84.26,84.213,10.6959]
[1770730134373,3.6076367,84.25,84.2,3.6076367]
[1770730134578,3.6076367,84.25,84.19,3.6076367]
[1770730134777,3.6076367,84.25,84.193,10.6983]
[1770730135389,3.6076367,84.24,84.193,10.6983]
[1770730136080,14.2989367,84.25,84.193,10.6983]
[1770730136385,10.6913,84.25,84.2,3.6076367]
[1770730137285,14.2989367,84.25,84.2,3.6076367]
[1770730137784,10.6902,84.259,84.21,3.6076367]
[1770730143688,10.6902,84.259,84.211,10.6961]
[1770730146189,10.6902,84.259,84.21,3.60937032]
[1770730146383,10.6916,84.247,84.2,3.60937032]
[1770730147484,10.6925,84.24,84.191,10.6986]
[1770730147685,14.30187032,84.24,84.191,10.6986]
[1770730148086,10.6925,84.24,84.191,10.6986]
[1770730150089,10.6944,84.226,84.19,3.60937032]
[1770730152595,3.60937032,84.24,84.19,3.60937032]
[1770730154395,10.6926,84.239,84.19,3.60937032]
[1770730154598,10.6926,84.239,84.19,14.30807032]
[1770730156595,3.60937032,84.23,84.19,10.6987]
[1770730156799,10.6939,84.229,84.18,3.60937032]
[1770730157100,3.60937032,84.23,84.19,3.60937032]
[1770730157700,14.30317032,84.23,84.183,10.6996]
[1770730158194,10.6938,84.23,84.19,3.60937032]
[1770730161603,14.30317032,84.23,84.189,10.6989]
[1770730166010,3.60937032,84.25,84.2,3.60937032]
[1770730166604,3.60937032,84.25,84.19,3.60937032]
[1770730167804,10.6917,84.247,84.204,10.697]
[1770730168205,3.60937032,84.26,84.138,166.5279]
[1770730168406,3.60937032,84.25,84.2,3.60937032]
[1770730169414,10.6914,84.249,84.204,10.697]
[1770730170501,10.6905,84.256,84.215,10.6956]
[1770730170706,10.6905,84.256,84.22,3.60937032]
[1770730170907,35.66,84.322,84.166,166.473]
[1770730171106,3.60937032,84.27,84.22,3.60937032]
[1770730171603,3.60937032,84.26,84.21,3.60937032]
[1770730172718,3.60937032,84.26,84.218,10.6953]
[1770730172912,3.60937032,84.27,84.22,3.60937032]
[1770730173112,3.60937032,84.27,84.21,3.60937032]
[1770730174718,10.6895,84.264,84.222,10.6947]
[1770730175720,10.6895,84.264,84.205,10.6969]
[1770730179220,10.6895,84.264,84.198,10.6977]
[1770730180620,10.6904,84.257,84.198,10.6977]
[1770730181413,35.66,84.296,84.187,10.6991]
[1770730182715,10.6918,84.246,84.187,10.6991]
[1770730183317,10.6926,84.24,84.187,10.6991]
[1770730183618,21.3755,84.278,84.187,10.6991]
[1770730184621,10.6903,84.257,84.195,10.6982]
[1770730185927,10.6915,84.248,84.146,21.4087]
[1770730186119,24.66884387,84.26,84.146,21.4087]
[1770730186521,10.6928,84.238,84.177,10.7005]
[1770730188620,10.6928,84.238,84.183,10.6997]
[1770730190329,10.6928,84.238,84.19,10.6987]
[1770730190529,10.6928,84.238,84.152,21.4072]
[1770730191728,10.6935,84.232,84.152,21.4072]
[1770730194732,10.6943,84.226,84.152,21.4072]
[1770730197738,10.6943,84.226,84.18,10.7001]
[1770730200434,10.6952,84.219,84.132,21.4123]
[1770730200632,166.3209,84.244,84.059,166.6848]
[1770730200837,166.2618,84.274,84.024,737.7425]
[1770730200838,10.698,84.197,84.145,10.7045]
[1770730201630,10.6988,84.191,84.145,10.7045]
[1770730201833,35.66,84.233,84.137,10.7055]
[1770730202229,35.66,84.226,84.079,166.645]
[1770730202433,35.66,84.226,84.092,166.6204]
[1770730203136,10.6973,84.202,84.094,21.4219]
[1770730203431,10.6973,84.202,84.097,166.6101]
[1770730203637,10.6973,84.202,84.088,166.6283]
[1770730203828,10.6973,84.202,84.098,21.4209]
[1770730204945,10.6962,84.211,84.148,10.704]
[1770730205338,10.6949,84.221,84.157,10.7029]
[1770730205533,35.66,84.25,84.089,35.66]
[1770730205939,35.66,84.25,84.073,35.66]
[1770730206141,10.6961,84.212,84.128,10.7067]
[1770730206744,10.6961,84.212,84.09,130.44]
[1770730207246,10.6961,84.212,84.09,94.78]
[1770730207742,10.6961,84.212,84.128,10.7066]
[1770730209242,10.6973,84.202,84.119,10.7078]
[1770730210144,10.6985,84.193,84.119,10.7078]
[1770730210441,10.6985,84.193,84.11,10.709]
[1770730212046,10.6985,84.193,84.09,94.78]
[1770730212439,10.6985,84.193,84.119,10.7078]
[1770730213852,10.6971,84.204,84.132,10.7062]
[1770730214952,10.6987,84.192,84.122,10.7074]
[1770730215150,10.6987,84.192,84.09,94.78]
[1770730215349,35.66,84.243,84.102,166.5999]
[1770730215553,35.66,84.263,84.094,166.6161]
[1770730215748,35.66,84.26,84.104,21.4194]
[1770730215943,35.66,84.26,84.149,10.704]
[1770730216348,166.2815,84.264,84.149,10.704]
[1770730216349,35.66,84.255,84.149,10.704]
[1770730217348,10.6962,84.211,84.156,10.703]
[1770730219655,10.6962,84.211,84.144,10.7047]
[1770730220454,10.6973,84.203,84.144,10.7047]
[1770730222655,10.6973,84.203,84.129,94.8]
[1770730222656,10.6963,84.21,84.152,10.7035]
[1770730222856,10.6963,84.21,84.129,94.8]
[1770730223457,94.8,84.247,84.129,94.8]
[1770730224858,10.6942,84.227,84.165,10.7019]
[1770730225758,10.695,84.221,84.165,10.7019]
[1770730226261,94.8,84.247,84.154,10.7034]
[1770730226958,10.6959,84.214,84.154,10.7034]
[1770730227164,21.3843,84.243,84.146,10.7044]
[1770730227461,10.6968,84.207,84.129,94.8]
[1770730228058,10.6975,84.201,84.145,10.7045]
[1770730228761,10.6975,84.201,84.152,10.7036]
[1770730229062,10.6956,84.216,84.129,94.8]
[1770730229263,21.3851,84.24,84.159,10.7028]
[1770730230262,10.6966,84.208,84.159,10.7028]
[1770730232455,35.66,84.229,84.115,459.13272282]
[1770730232863,21.3881,84.228,84.145,10.7045]
[1770730233058,21.3881,84.228,84.115,459.13272282]
[1770730233059,166.3566,84.226,84.115,459.13272282]
[1770730233259,137.56,84.242,84.032,166.7399]
[1770730233260,166.3601,84.224,84.059,166.6862]
[1770730233567,35.66,84.209,84.06,129.08]
[1770730233761,166.4116,84.198,84.06,129.08]
[1770730233966,35.66,84.183,84.012,166.7795]
[1770730234370,35.66,84.183,84.021,129.96]
[1770730234566,202.1178,84.175,84.023,21.4402]
[1770730234764,166.4393,84.184,83.997,166.8077]
[1770730234765,35.66,84.164,84.016,592.87201314]
[1770730235666,35.66,84.162,84.016,592.87201314]
[1770730235865,35.66,84.16,84.016,592.87201314]
[1770730236669,10.708,84.118,84.016,592.87201314]
[1770730236871,35.66,84.16,84.016,592.87201314]
[1770730237065,198.54,84.161,84.017,132.78]
[1770730237465,187.8926,84.16,84.049,10.7167]
[1770730237666,187.8926,84.16,84.017,132.78]
[1770730237667,21.4055,84.16,84.017,132.78]
[1770730238772,10.7084,84.115,84.033,10.7188]
[1770730239164,200.94,84.12,84.017,132.78]
[1770730239475,10.7072,84.124,84.045,10.7173]
[1770730239774,188.36,84.137,84.045,10.7173]
[1770730240071,176.76,84.136,84.045,10.7173]
[1770730240667,10.7096,84.106,84.039,94.84]
[1770730242676,10.7096,84.106,84.04,3.10516664]
[1770730242864,3.67932781,84.099,84.04,3.10516664]
[1770730244178,3.67932781,84.097,84.04,3.10516664]
[1770730245179,3.67932781,84.094,84.04,3.10516664]
[1770730245877,3.67932781,84.094,84.041,3.0807818]
[1770730247081,3.67932781,84.109,84.045,3.06348248]
[1770730247979,3.67932781,84.103,84.047,3.06348248]
[1770730249584,3.67932781,84.102,84.051,3.13165878]
[1770730250482,10.7103,84.101,84.052,10.7163]
[1770730250686,21.4108,84.139,84.053,3.13195607]
[1770730250885,3.80433431,84.137,84.053,3.13195607]
[1770730251784,10.7084,84.115,84.062,3.05185354]
[1770730252689,10.7084,84.115,84.066,10.7145]
[1770730252890,3.80433431,84.117,84.067,3.12190706]
[1770730253792,3.80433431,84.13,84.077,3.12190706]
[1770730254590,3.80433431,84.13,84.079,3.12190706]
[1770730254793,3.80433431,84.144,84.079,3.12190706]
[1770730255182,3.80433431,84.144,84.082,3.02449673]
[1770730255793,10.7062,84.133,84.082,3.02449673]
[1770730255993,3.80433431,84.132,84.082,3.02449673]
[1770730256891,3.80433431,84.114,84.065,2.94351608]
[1770730257697,3.80433431,84.104,84.037,2.94351608]
[1770730258297,94.9,84.128,84.037,2.94351608]
[1770730258298,10.7131,84.078,84.037,2.94351608]
[1770730260496,3.80433431,84.094,84.037,2.94351608]
[1770730260697,94.9,84.118,84.037,2.94351608]
[1770730260698,3.80433431,84.117,84.037,2.94351608]
[1770730261399,10.7102,84.101,84.046,3.01081144]
[1770730261600,3.80433431,84.104,84.046,3.01081144]
[1770730261800,3.80433431,84.104,84.035,10.7185]
[1770730262101,3.80433431,84.104,84.026,3.01081144]
[1770730262298,3.80433431,84.074,84.026,3.01081144]
[1770730262502,3.80433431,84.074,84.012,3.01081144]
[1770730263396,10.7153,84.061,84.012,13.73221144]
[1770730263794,3.80433431,84.06,84.012,13.73221144]
[1770730263988,3.80433431,84.049,83.997,3.04360433]
[1770730265501,10.7179,84.041,83.997,3.04360433]
[1770730266597,3.80433431,84.038,83.997,3.04360433]
[1770730266799,3.80433431,84.038,83.983,3.02507522]
[1770730267696,10.7169,84.048,83.987,3.02507522]
[1770730268290,10.7169,84.048,83.992,3.02507522]
[1770730268493,10.7158,84.057,83.992,3.02507522]
[1770730269498,3.80433431,84.065,84.012,3.29480437]
[1770730270505,10.7134,84.076,84.022,3.29480437]
[1770730270703,202.1829,84.142,84.022,3.29480437]